Workbook

Sheet 综合成绩
A1: 行政办公室工作员
A2: 序号 | B2: 姓名 | C2: 应聘职位 | D2: 笔试分数 | E2: 面试分数 | F2: 综合成绩 | G2: 本职位排名 | H2: 体检、考察情况 | I2: 备注
A3: 1 | B3: 王兴娜 | C3: 行政办工作员 | D3: 55 | E3: 89.50 | F3: =SUM(D3*0.4+E3*0.6) -> 75.70 | G3: 1 | H3: 合格
A4: 经营处预算员
A5: 序号 | B5: 姓名 | C5: 应聘职位 | D5: 笔试分数 | E5: 面试分数 | F5: 综合成绩 | G5: 本职位排名 | H5: 体检、考察情况 | I5: 备注
A6: 1 | B6: 万玲岚 | C6: 经营处预算员 | D6: 63 | E6: 77.43 | F6: =SUM(D6*0.4+E6*0.6) -> 71.66 | G6: 1 | H6: 合格
A7: 经营处信息技术员
A8: 序号 | B8: 姓名 | C8: 应聘职位 | D8: 笔试分数 | E8: 面试分数 | F8: 综合成绩 | G8: 本职位排名 | H8: 体检、考察情况 | I8: 备注
A9: 1 | B9: 朱亮超 | C9: 信息技术员 | D9: 53 | E9: 76.14 | F9: =SUM(D9*0.4+E9*0.6) -> 66.88 | G9: 1 | H9: 合格
A10: 投融资部工作员
A11: 序号 | B11: 姓名 | C11: 应聘职位 | D11: 笔试分数 | E11: 面试分数 | F11: 综合成绩 | G11: 本职位排名 | H11: 体检、考察情况 | I11: 备注
A12: 1 | B12: 杨正桦 | C12: 投融资部工作员 | D12: 66 | E12: 88.57 | F12: =SUM(D12*0.4+E12*0.6) -> 79.54 | G12: 1 | H12: 合格
A13: 财务结算中心出纳
A14: 序号 | B14: 姓名 | C14: 应聘职位 | D14: 笔试分数 | E14: 面试分数 | F14: 综合成绩 | G14: 本职位排名 | H14: 体检、考察情况 | I14: 备注
A15: 1 | B15: 王秋人 | C15: 财务结算中心出纳 | D15: 63 | E15: 86.86 | F15: =SUM(D15*0.4+E15*0.6) -> 77.32 | G15: 1 | H15: 合格
A16: 检察专员办公室工作员
A17: 序号 | B17: 姓名 | C17: 应聘职位 | D17: 笔试分数 | E17: 面试分数 | F17: 综合成绩 | G17: 本职位排名 | H17: 体检、考察情况 | I17: 备注
A18: 1 | B18: 龙怡帆 | C18: 检察专员办公室工作员 | D18: 61 | E18: 87.60 | F18: =SUM(D18*0.4+E18*0.6) -> 76.96 | G18: 1 | H18: 合格
A19: 施工二处资料员
A20: 序号 | B20: 姓名 | C20: 应聘职位 | D20: 笔试分数 | E20: 面试分数 | F20: 综合成绩 | G20: 本职位排名 | H20: 体检、考察情况 | I20: 备注
A21: 1 | B21: 黄志津 | C21: 施工二处资料员 | D21: 54 | E21: 87.14 | F21: =SUM(D21*0.4+E21*0.6) -> 73.88 | G21: 1 | H21: 合格
A22: 2 | B22: 梁郑益 | C22: 施工二处资料员 | D22: 54 | E22: 85.14 | F22: =SUM(D22*0.4+E22*0.6) -> 72.68 | G22: 2 | H22: 合格
A23: 施工三处项目管理人员
A24: 序号 | B24: 姓名 | C24: 应聘职位 | D24: 笔试分数 | E24: 面试分数 | F24: 综合成绩 | G24: 本职位排名 | H24: 体检、考察情况 | I24: 备注
A25: 1 | B25: 周民伟 | C25: 施工三处项目管理人员 | D25: 55 | E25: 84.13 | F25: =SUM(D25*0.4+E25*0.6) -> 72.48 | G25: 1 | H25: 合格
A26: 房开公司工作员
A27: 序号 | B27: 姓名 | C27: 应聘职位 | D27: 笔试分数 | E27: 面试分数 | F27: 综合成绩 | G27: 本职位排名 | H27: 体检、考察情况 | I27: 备注
A28: 1 | B28: 曾令金 | C28: 房开公司工作员 | D28: 66 | E28: 84.88 | F28: =SUM(D28*0.4+E28*0.6) -> 77.33 | G28: 1 | H28: 合格
A29: 2 | B29: 吴柳芬 | C29: 房开公司工作员 | D29: 59 | E29: 87.50 | F29: =SUM(D29*0.4+E29*0.6) -> 76.10 | G29: 2 | H29: 合格
A30: 兴凯公司检验检测实验员
A31: 序号 | B31: 姓名 | C31: 应聘职位 | D31: 笔试分数 | E31: 面试分数 | F31: 综合成绩 | G31: 本职位排名 | H31: 体检、考察情况 | I31: 备注
A32: 1 | B32: 李德伟 | C32: 兴凯公司检验检测实验员 | D32: 65 | E32: 86.71 | F32: =SUM(D32*0.4+E32*0.6) -> 78.03 | G32: 1 | H32: 合格
A33: 设备租赁公司工作员
A34: 序号 | B34: 姓名 | C34: 应聘职位 | D34: 笔试分数 | E34: 面试分数 | F34: 综合成绩 | G34: 本职位排名 | H34: 体检、考察情况 | I34: 备注
A35: 1 | B35: 汪泳 | C35: 设备租赁公司工作员 | D35: 71 | E35: 87.75 | F35: =SUM(D35*0.4+E35*0.6) -> 81.05 | G35: 1 | H35: 合格
A36: 2 | B36: 刘苏元 | C36: 设备租赁公司工作员 | D36: 63 | E36: 84.25 | F36: =SUM(D36*0.4+E36*0.6) -> 75.75 | G36: 2 | H36: 合格
A37: 中泰公司工作员
A38: 序号 | B38: 姓名 | C38: 应聘职位 | D38: 笔试分数 | E38: 面试分数 | F38: 综合成绩 | G38: 本职位排名 | H38: 体检、考察情况 | I38: 备注
A39: 1 | B39: 何昌宇 | C39: 中泰公司工作员 | D39: 63 | E39: 91.50 | F39: =SUM(D39*0.4+E39*0.6) -> 80.10 | G39: 1 | H39: 合格
A40: 中凯行政综合管理部行政工作人员
A41: 序号 | B41: 姓名 | C41: 应聘职位 | D41: 笔试分数 | E41: 面试分数 | F41: 综合成绩 | G41: 本职位排名 | H41: 体检、考察情况 | I41: 备注
A42: 1 | B42: 王秋菊 | C42: 中凯公司行政工作人员 | D42: 61 | E42: 90.60 | F42: =SUM(D42*0.4+E42*0.6) -> 78.76 | G42: 1 | H42: 合格
A43: 中凯行政综合管理部人事工作人员
A44: 序号 | B44: 姓名 | C44: 应聘职位 | D44: 笔试分数 | E44: 面试分数 | F44: 综合成绩 | G44: 本职位排名 | H44: 体检、考察情况 | I44: 备注
A45: 1 | B45: 龙先满 | C45: 中凯公司行政综合管理部人事工作人员 | D45: 43 | E45: 83.20 | F45: =SUM(D45*0.4+E45*0.6) -> 67.12 | G45: 1 | H45: 合格
A46: 中凯财务部出纳
A47: 序号 | B47: 姓名 | C47: 应聘职位 | D47: 笔试分数 | E47: 面试分数 | F47: 综合成绩 | G47: 本职位排名 | H47: 体检、考察情况 | I47: 备注
A48: 1 | B48: 谭力元 | C48: 中凯公司财务部出纳人员 | D48: 54 | E48: 90.30 | F48: =SUM(D48*0.4+E48*0.6) -> 75.78 | G48: 1 | H48: 合格
A49: 中凯经营部工作人员
A50: 序号 | B50: 姓名 | C50: 应聘职位 | D50: 笔试分数 | E50: 面试分数 | F50: 综合成绩 | G50: 本职位排名 | H50: 体检、考察情况 | I50: 备注
A51: 1 | B51: 杨立 | C51: 中凯公司经营部工作员 | D51: 62 | E51: 84.57 | F51: =SUM(D51*0.4+E51*0.6) -> 75.54 | G51: 1 | H51: 合格
A52: 中凯经营部招投标专员
A53: 序号 | B53: 姓名 | C53: 应聘职位 | D53: 笔试分数 | E53: 面试分数 | F53: 综合成绩 | G53: 本职位排名 | H53: 体检、考察情况 | I53: 备注
A54: 1 | B54: 任梓溢 | C54: 中凯公司经营部招投标专员 | D54: 45 | E54: 87.43 | F54: =SUM(D54*0.4+E54*0.6) -> 70.46 | G54: 1 | H54: 合格
A55: 中凯工程管理部项目管理员
A56: 序号 | B56: 姓名 | C56: 应聘职位 | D56: 笔试分数 | E56: 面试分数 | F56: 综合成绩 | G56: 本职位排名 | H56: 体检、考察情况 | I56: 备注
A57: 1 | B57: 李明烨 | C57: 中凯公司工程管理部项目管理员 | D57: 55 | E57: 88.00 | F57: =SUM(D57*0.4+E57*0.6) -> 74.80 | G57: 1 | H57: 合格
A58: 2 | B58: 金玉松 | C58: 中凯公司工程管理部项目管理员 | D58: 42 | E58: 91.60 | F58: =SUM(D58*0.4+E58*0.6) -> 71.76 | G58: 2 | H58: 合格
A59: 中凯工程管理部资料员
A60: 序号 | B60: 姓名 | C60: 应聘职位 | D60: 笔试分数 | E60: 面试分数 | F60: 综合成绩 | G60: 本职位排名 | H60: 体检、考察情况 | I60: 备注
A61: 1 | B61: 潘成成 | C61: 中凯公司工程管理部资料员 | D61: 52 | E61: 84.20 | F61: =SUM(D61*0.4+E61*0.6) -> 71.32 | G61: 1 | H61: 合格
A62: 中信公司党务工作者
A63: 序号 | B63: 姓名 | C63: 应聘职位 | D63: 笔试分数 | E63: 面试分数 | F63: 综合成绩 | G63: 本职位排名 | H63: 体检、考察情况 | I63: 备注
A64: 1 | B64: 杨彰艳 | C64: 中信公司党务工作者 | D64: 62 | E64: 88.38 | F64: =SUM(D64*0.4+E64*0.6) -> 77.83 | G64: 1 | H64: 合格
A65: 建筑勘察设计研究院可研编制人员
A66: 序号 | B66: 姓名 | C66: 应聘职位 | D66: 笔试分数 | G66: 是否进入体检环节 | I66: 是否进入体检环节
A67: 1 | B67: 杨蕙慈 | C67: 建筑勘察设计院可研编制人员 | D67: 89 | G67: 是 | I67: 是
A68: 2 | B68: 龙华婉 | C68: 建筑勘察设计院可研编制人员 | D68: 88 | G68: 是 | I68: 是
A69: 3 | B69: 谢文佩 | C69: 建筑勘察设计院可研编制人员 | D69: 86 | G69: 是 | I69: 是
A70: 4 | B70: 吴胜德 | C70: 建筑勘察设计院可研编制人员 | D70: 85 | G70: 是 | I70: 是
A71: 5 | B71: 吴茗丽 | C71: 建筑勘察设计院可研编制人员 | D71: 82 | G71: 是 | I71: 是
A72: 6 | B72: 杨仁智 | C72: 建筑勘察设计院可研编制人员 | D72: 81 | G72: 是 | I72: 是
A73: 7 | B73: 汪萍 | C73: 建筑勘察设计院可研编制人员 | D73: 82 | G73: 是 | I73: 是
A74: 8 | B74: 吴柳芬 | C74: 建筑勘察设计院可研编制人员 | D74: 79 | G74: 是 | I74: 是
A75: 9 | B75: 龙家旺 | C75: 建筑勘察设计院可研编制人员 | D75: 78 | G75: 是 | I75: 是
A76: 10 | B76: 陈雄亨 | C76: 建筑勘察设计院可研编制人员 | D76: 77 | G76: 是 | I76: 是
A77: 11 | B77: 陈宇馨 | C77: 建筑勘察设计院可研编制人员 | D77: 75 | G77: 是 | I77: 是
A78: 12 | B78: 吴青阳 | C78: 建筑勘察设计院可研编制人员 | D78: 74 | G78: 是 | I78: 是
A79: 13 | B79: 吴述雨 | C79: 建筑勘察设计院可研编制人员 | D79: 72 | G79: 否 | I79: 否
A80: 14 | B80: 姜明 | C80: 建筑勘察设计院可研编制人员 | D80: 71 | G80: 否 | I80: 否
A81: 15 | B81: 袁公绣 | C81: 建筑勘察设计院可研编制人员 | D81: 70 | G81: 否 | I81: 否
A82: 16 | B82: 陶艺丹 | C82: 建筑勘察设计院可研编制人员 | D82: 69 | G82: 否 | I82: 否
A83: 17 | B83: 李家丞 | C83: 建筑勘察设计院可研编制人员 | D83: 68 | G83: 否 | I83: 否
A84: 18 | B84: 熊梅花 | C84: 建筑勘察设计院可研编制人员 | D84: 68 | G84: 否 | I84: 否
A85: 19 | B85: 韩江 | C85: 建筑勘察设计院可研编制人员 | D85: 67 | G85: 否 | I85: 否
A86: 20 | B86: 龙婷婷 | C86: 建筑勘察设计院可研编制人员 | D86: 65 | G86: 否 | I86: 否
A87: 21 | B87: 王晨晨 | C87: 建筑勘察设计院可研编制人员 | D87: 65 | G87: 否 | I87: 否
A88: 22 | B88: 陈肖强 | C88: 建筑勘察设计院可研编制人员 | D88: 64 | G88: 否 | I88: 否

Sheet 经营处 (hidden)

Sheet 投融资 (hidden)

Sheet 财务结算中心 (hidden)

Sheet 纪检监察 (hidden)

Sheet 施工一 (hidden)

Sheet 施工二 (hidden)

Sheet 施工三 (hidden)

Sheet 房开 (hidden)

Sheet 兴凯 (hidden)

Sheet 设备租赁 (hidden)

Sheet 中泰 (hidden)

Sheet 中凯 (hidden)

Sheet 中信 (hidden)
